bitfinex/quotes_ETHUSD_20250803
["timestamp","ask_amount","ask_price","bid_price","bid_amount"]
[1754223961715,0.4591,3491.1,3490.6,0.4434]
[1754223962017,0.4591,3491.1,3490.7,4.434]
[1754223962527,0.4591,3491.4,3490.7,5.3538]
[1754223962693,0.001,3491.6,3490.7,5.3538]
[1754223963041,0.4436,3491.5,3490.7,5.3538]
[1754223963246,0.4591,3491.2,3490.7,5.3538]
[1754223963806,0.4601,3490.8,3490.7,4.434]
[1754223964133,0.001,3490.8,3490.7,4.434]
[1754223964331,0.001,3490.8,3490.7,5.84154]
[1754223966026,0.001,3490.8,3490.7,0.48774]
[1754223966225,0.9037,3490.8,3490.7,4.433]
[1754223966627,0.4601,3490.8,3490.6,0.4434]
[1754223966828,0.4601,3490.8,3490.7,4.433]
[1754223966829,0.001,3490.8,3490.7,4.433]
[1754223967464,0.9037,3490.8,3490.7,4.433]
[1754223969133,0.001,3490.8,3490.7,4.433]
[1754223969339,0.9037,3490.8,3490.7,4.433]
[1754223970315,0.4601,3490.8,3490.7,4.433]
[1754223971036,0.9037,3490.8,3490.7,4.433]
[1754223975298,0.4601,3490.8,3490.7,4.433]
[1754223976603,0.9037,3490.8,3490.7,4.433]
[1754223978014,0.4601,3490.8,3490.7,4.433]
[1754223978769,0.001,3490.8,3490.7,4.433]
[1754223979464,0.9037,3490.8,3490.7,4.431]
[1754223980038,0.9037,3490.8,3490.0,0.1432]
[1754223980251,0.9037,3490.8,3490.1,4.431]
[1754223980252,0.9027,3490.7,3490.1,4.431]
[1754223980565,0.9027,3490.6,3490.2,4.431]
[1754223980857,0.9027,3490.5,3490.2,4.431]
[1754223981026,0.4436,3490.5,3490.2,4.431]
[1754223981227,0.4591,3490.4,3490.2,4.431]
[1754223981459,0.4591,3490.3,3490.2,4.431]
[1754223982568,0.001,3490.8,3490.2,4.431]
[1754223982569,0.4591,3490.7,3490.2,4.431]
[1754223982770,0.001,3490.8,3490.2,4.431]
[1754223982963,0.4591,3490.6,3490.2,4.431]
[1754223983176,0.4436,3490.5,3490.2,4.431]
[1754223983533,0.4591,3490.4,3490.2,4.431]
[1754223983959,0.001,3490.8,3490.2,4.431]
[1754223984159,0.4591,3490.7,3490.2,4.431]
[1754223984371,0.9027,3490.6,3490.3,4.431]
[1754223984579,0.9027,3490.5,3490.3,4.431]
[1754223984762,0.93851251,3490.4,3490.1,0.002]
[1754223984945,0.47941354,3490.3,3490.1,4.432]
[1754223985145,0.4591,3490.3,3490.1,4.432]
[1754223985350,0.4436,3490.2,3490.1,4.432]
[1754223985679,0.9027,3490.2,3490.1,4.432]
[1754223986176,0.001,3490.8,3490.1,4.432]
[1754223986337,0.4591,3490.5,3490.1,4.432]
[1754223986681,0.9027,3490.4,3490.1,4.432]
[1754223986894,0.9027,3490.3,3490.1,4.432]
[1754223987049,0.4591,3490.2,3490.1,4.432]
[1754223991164,0.9162,3490.2,3490.1,4.432]
[1754223991754,0.9162,3490.2,3490.1,0.002]
[1754223991959,2.6392,3490.2,3490.1,0.002]
[1754223992144,35.90312,3490.2,3490.1,0.002]
[1754223992345,1.723,3490.0,3489.7,0.002]
[1754223992735,34.723,3489.8,3489.7,0.002]
[1754223993242,35.6385,3489.8,3489.7,0.002]
[1754223996564,33.9155,3489.8,3489.7,0.002]
[1754224000988,35.6385,3489.8,3489.7,0.002]
[1754224011819,35.1814,3489.8,3489.7,0.002]
[1754224011970,39.6104,3489.8,3489.7,0.002]
[1754224012787,40.0675,3489.8,3489.7,0.002]
[1754224020123,40.3548,3489.8,3489.7,0.002]
[1754224020333,41.60244231,3489.8,3489.7,0.002]
[1754224021806,41.98458315,3489.8,3489.7,0.002]
[1754224024339,5.5603,3489.7,3489.6,0.002]
[1754224024530,37.57098315,3489.7,3489.6,0.002]
[1754224026415,39.31003681,3489.7,3489.6,0.002]
[1754224029251,39.21003681,3489.7,3489.6,0.002]
[1754224029557,43.29157125,3489.7,3489.6,0.002]
[1754224029707,43.63803681,3489.7,3489.6,0.002]
[1754224031124,43.29157125,3489.7,3489.6,0.002]
[1754224031323,34.84557125,3489.7,3489.6,0.002]
[1754224031524,38.07735366,3489.7,3489.6,0.002]
[1754224031729,41.62735366,3489.7,3489.6,0.002]
[1754224031938,42.09025366,3489.7,3489.6,0.002]
[1754224032312,42.90943041,3489.7,3489.6,0.002]
[1754224033630,42.44143041,3489.7,3489.6,0.002]
[1754224033826,41.62735366,3489.7,3489.6,0.002]
[1754224034260,41.62635366,3489.7,3489.6,0.002]
[1754224034815,41.33905366,3489.7,3489.6,0.168]
[1754224035021,44.723,3489.4,3489.3,0.002]
[1754224035246,39.15,3489.4,3489.3,0.002]
[1754224035456,40.57668347,3489.4,3489.3,0.002]
[1754224036431,42.28722578,3489.4,3489.3,0.002]
[1754224036653,41.82432578,3489.4,3489.3,0.002]
[1754224037635,41.12668347,3489.4,3489.3,0.002]
[1754224038235,37.57668347,3489.4,3489.3,0.002]
[1754224038455,33.43698347,3489.4,3489.3,0.905]
[1754224038649,5.85368347,3489.4,3489.3,0.905]
[1754224039036,8.85368347,3489.4,3489.3,0.905]
[1754224039449,5.85368347,3489.4,3489.3,0.905]
[1754224041834,8.85368347,3489.4,3489.3,0.905]
[1754224042852,8.85268347,3489.4,3489.3,0.905]
[1754224043226,4.42668347,3489.4,3489.3,0.905]
[1754224049271,4.42668347,3489.4,3489.3,0.002]
[1754224049478,8.85168347,3489.4,3489.3,0.002]
[1754224049775,9.32658347,3489.4,3489.3,0.002]
[1754224049973,40.74302182,3489.4,3489.3,0.002]
[1754224050463,40.30322182,3489.4,3489.3,0.002]
[1754224050666,40.74302182,3489.4,3489.3,0.002]
[1754224051148,40.30322182,3489.4,3489.3,0.002]
[1754224051497,39.32658347,3489.4,3489.3,0.002]
[1754224051780,8.85068347,3489.4,3489.3,0.002]
[1754224051969,8.85068347,3489.4,3489.3,0.9214]
[1754224052934,4.42668347,3489.4,3489.3,0.9214]
[1754224053851,8.85068347,3489.4,3489.3,0.9214]
[1754224054883,8.84968347,3489.4,3489.3,0.9214]
[1754224055046,4.42668347,3489.4,3489.3,0.9214]
[1754224060973,4.42668347,3489.4,3489.3,1.1001258]
[1754224062755,1.42668347,3489.4,3489.3,5.18505263]
[1754224062956,1.42668347,3489.4,3489.3,6.04678563]
[1754224063848,1.42668347,3489.4,3489.3,1.0424588]
[1754224064046,1.42668347,3489.4,3489.3,0.002]
[1754224067867,1.42668347,3489.4,3489.3,0.9214]
[1754224073068,1.42668347,3489.4,3489.3,1.783114]
[1754224074483,1.42668347,3489.4,3489.3,0.863714]
[1754224076476,1.42668347,3489.4,3489.3,5.283714]
[1754224077207,1.42668347,3489.4,3489.3,5.8572354]
[1754224078508,1.42668347,3489.4,3489.3,6.7766354]
[1754224080707,1.42668347,3489.4,3489.3,5.8572354]
[1754224081409,1.42668347,3489.4,3489.3,6.7429354]
[1754224081772,1.42668347,3489.4,3489.3,11.37786223]
[1754224081972,0.001,3490.0,3489.4,0.55]
[1754224082197,0.001,3490.0,3489.5,1.20730622]
[1754224082413,0.001,3490.0,3489.6,4.418]
[1754224082908,0.4753,3490.0,3489.6,4.418]
[1754224083416,0.4753,3490.0,3489.6,4.532884]
[1754224083711,0.4753,3490.0,3489.6,4.418]
[1754224083913,0.4753,3490.0,3489.7,1.12640062]
[1754224084126,0.001,3490.0,3489.7,1.12640062]
[1754224084690,0.001,3490.0,3489.7,2.01210062]
[1754224085015,0.001,3490.0,3489.7,1.12640062]
[1754224085180,0.001,3490.0,3489.8,0.8857]
[1754224085382,0.001,3490.0,3489.9,5.06101006]
[1754224085577,0.001,3490.0,3489.9,5.94671006]
[1754224085811,0.001,3490.0,3489.9,10.03163689]
[1754224087110,0.001,3490.0,3489.9,9.14493689]
[1754224090687,0.001,3490.0,3489.9,4.72793689]
[1754224090887,0.001,3490.0,3489.9,9.41245599]
[1754224091088,0.001,3490.0,3489.9,9.52733299]
[1754224091914,0.001,3490.0,3489.9,9.52732687]
[1754224092701,0.001,3490.0,3489.9,5.11132687]
[1754224092903,0.4753,3490.0,3489.9,4.46831681]
[1754224093105,0.9353,3490.0,3489.9,4.35343981]
[1754224096722,0.9353,3490.0,3489.9,8.76943981]
[1754224097746,0.9353,3490.0,3489.9,4.68458688]
[1754224099015,0.9353,3490.0,3489.9,4.416]
[1754224100938,0.9353,3490.0,3489.9,4.68459246]
[1754224101836,0.001,3490.0,3489.9,4.68459246]
[1754224102542,0.4753,3490.0,3489.9,4.68459246]
[1754224102755,0.4753,3490.0,3489.9,4.68359246]
[1754224102952,0.001,3490.0,3489.9,5.15195171]
[1754224103806,0.001,3490.0,3489.9,10.12257854]
[1754224105124,0.001,3490.0,3489.9,10.23745554]
[1754224108436,0.001,3490.0,3489.9,10.23733358]
[1754224112514,0.001,3490.0,3489.9,10.18733358]
[1754224112912,0.001,3490.0,3489.9,9.91886308]
[1754224114540,0.001,3490.0,3489.9,9.03316308]
[1754224116926,0.001,3490.0,3489.9,9.95236308]
[1754224117529,0.001,3490.0,3489.9,9.03316308]
[1754224117862,0.001,3490.0,3489.9,9.95236308]
[1754224118055,0.001,3490.0,3489.9,10.09556308]
[1754224118633,0.001,3490.0,3489.9,10.04556308]
[1754224119061,0.001,3490.0,3489.9,10.59556308]
[1754224127833,0.001,3490.0,3489.9,9.67636308]
[1754224130041,0.001,3490.0,3489.9,9.77036308]
[1754224130249,0.001,3490.1,3490.0,7.63392683]
[1754224130575,0.4881,3490.1,3490.0,6.63086314]
[1754224131070,0.4881,3490.1,3490.0,5.73644502]
[1754224131277,0.9278,3490.1,3490.0,10.14544502]
[1754224131438,0.9278,3490.1,3490.0,5.39201221]
[1754224131639,0.9278,3490.1,3490.0,7.8040759]
[1754224132971,0.9278,3490.1,3490.0,4.408]
[1754224139481,0.9278,3490.1,3489.9,0.002]
[1754224139776,0.9278,3490.1,3490.0,4.408]
[1754224139777,0.001,3490.1,3490.0,4.408]
[1754224140203,0.9596,3490.1,3490.0,4.408]
[1754224141084,0.9596,3490.1,3490.0,4.06351386]
[1754224141379,0.9596,3490.1,3490.0,3.71903046]
[1754224145201,0.9596,3490.1,3490.0,7.11410636]
[1754224151090,0.9596,3490.1,3490.0,6.76962354]
[1754224154104,0.4947,3490.1,3490.0,6.76962354]
[1754224155112,0.9596,3490.1,3489.9,0.4967]
[1754224155615,0.9586,3490.0,3489.6,0.002]
[1754224155989,0.4937,3489.9,3489.6,0.002]
[1754224156186,0.4649,3489.9,3489.7,4.405]
[1754224156512,0.4937,3489.8,3489.7,4.405]
[1754224156713,0.9586,3489.8,3489.7,4.405]
[1754224161298,0.9586,3489.8,3489.7,4.06047479]
[1754224162181,0.4937,3489.8,3489.7,4.06047479]
[1754224162382,0.001,3490.1,3489.7,4.46692227]
[1754224162745,0.4937,3490.0,3489.7,4.46692227]
[1754224163018,0.001,3490.1,3489.8,0.8841]
[1754224163519,0.001,3490.1,3489.9,0.4475]
[1754224163703,0.001,3490.1,3490.0,4.405]
[1754224163898,0.001,3490.1,3490.0,4.97455475]
[1754224167526,0.001,3490.1,3490.0,5.41115475]
[1754224167736,0.001,3490.1,3490.0,4.97455475]
[1754224167923,0.001,3490.1,3490.0,16.45373065]
[1754224168309,0.001,3490.1,3490.0,9.80373065]
[1754224168507,0.001,3490.1,3490.0,12.80373065]
[1754224170548,0.001,3490.1,3490.0,8.39873065]
[1754224170736,0.001,3490.1,3490.0,11.36763065]
[1754224170934,0.9411,3490.1,3490.0,3.3950759]
[1754224171122,0.9411,3490.1,3490.0,7.7980759]
[1754224171511,0.9411,3490.1,3490.0,3.3950759]
[1754224171709,0.9411,3490.1,3490.0,7.7980759]
[1754224173557,0.001,3490.1,3490.0,7.7980759]
[1754224173755,0.001,3490.1,3490.0,9.38404329]
[1754224174671,0.001,3490.1,3490.0,5.98896739]
[1754224174973,0.001,3490.1,3490.0,4.403]
[1754224175431,0.001,3490.1,3490.0,4.41264135]
[1754224176634,0.001,3490.1,3490.0,5.30514135]
[1754224176818,0.001,3490.1,3490.0,5.2955]
[1754224177152,0.001,3490.1,3490.0,4.403]
[1754224177359,0.001,3490.1,3490.0,4.41264135]
[1754224177853,0.001,3490.1,3490.0,4.403]
[1754224178176,0.001,3490.1,3490.0,8.35158725]
[1754224178471,0.9411,3490.1,3490.0,3.9389459]
[1754224178675,0.9411,3490.1,3490.0,7.7970759]
[1754224179441,0.9411,3490.1,3489.9,0.002]
[1754224179744,0.03581661,3490.0,3489.9,0.002]
[1754224179939,0.001,3490.1,3489.9,0.002]
[1754224180136,0.4619,3490.0,3489.9,0.002]
[1754224180334,0.9401,3490.0,3489.9,0.002]
[1754224186889,0.97591661,3490.0,3489.9,0.002]
[1754224187049,34.50989943,3490.0,3489.9,0.002]
[1754224187235,37.47408282,3490.0,3489.9,0.002]
[1754224188274,37.09922166,3490.0,3489.9,0.002]
[1754224188491,36.81192166,3490.0,3489.9,0.002]
[1754224193607,31.53892166,3490.0,3489.9,0.002]
[1754224193798,1.53892166,3490.0,3489.9,0.002]
[1754224194001,0.9401,3490.0,3489.9,0.002]
[1754224196498,2.6631,3490.0,3489.9,0.002]
[1754224197007,2.69891661,3490.0,3489.9,0.002]
[1754224197210,3.0,3489.9,3489.1,3.8000759]
[1754224197375,0.86999166,3489.8,3489.1,3.8000759]
[1754224197578,3.4782,3489.9,3489.2,0.4475]
[1754224197799,3.4782,3489.9,3489.2,0.8925]
[1754224200289,3.0,3489.9,3489.1,3.3550759]
[1754224200533,4.723,3489.6,3489.1,3.3550759]
[1754224200731,3.0,3489.2,3489.1,3.3550759]
[1754224201020,3.0,3489.1,3489.0,0.002]
[1754224201225,0.94642585,3489.1,3489.0,0.002]
[1754224202171,0.9106,3489.1,3489.0,0.002]
[1754224207876,3.0,3489.2,3489.0,0.002]
[1754224208084,3.7401,3489.2,3489.0,0.002]
[1754224208289,3.0,3489.2,3489.0,0.002]
[1754224208995,4.401,3489.5,3489.0,0.9183]
[1754224209304,3.0,3489.4,3489.0,0.9183]
[1754224209470,0.9106,3489.7,3489.0,0.9183]
[1754224209658,3.0,3489.6,3489.0,0.9183]
[1754224209857,0.9106,3489.7,3489.0,0.9183]
[1754224210057,1.61416,3489.7,3489.0,0.9183]
[1754224210393,3.0,3489.6,3489.0,0.9183]
[1754224211854,3.4607,3489.6,3489.0,0.4708]
[1754224212055,0.4607,3489.6,3489.0,0.002]
[1754224212295,3.0,3489.6,3489.0,0.9183]
[1754224212862,0.4617,3490.0,3489.1,0.9163]
[1754224213087,3.4617,3490.0,3489.1,4.2713759]
[1754224213283,0.4607,3489.9,3489.1,4.2713759]
[1754224213487,0.4607,3489.9,3489.1,3.3550759]
[1754224214100,0.4499,3489.8,3489.1,3.3550759]
[1754224214296,0.43056145,3489.7,3489.1,3.3550759]
[1754224214459,0.4607,3489.6,3489.1,3.3550759]
[1754224214659,0.43056145,3489.7,3489.1,3.3550759]
[1754224214862,0.4607,3489.5,3489.1,3.3550759]
[1754224215990,0.4607,3489.5,3489.2,3.3550759]
[1754224216762,0.001,3490.0,3489.2,4.23011349]
[1754224216963,4.401,3490.0,3489.3,0.9163]
[1754224217486,4.8617,3490.0,3489.3,0.9163]
[1754224217963,3.0,3489.9,3489.3,0.9163]
[1754224218162,0.001,3490.0,3489.4,0.9163]
[1754224218367,0.001,3490.0,3489.3,3.36472718]
[1754224218368,0.001,3490.0,3489.5,0.9163]
[1754224218596,0.001,3490.0,3489.5,1.34440272]
[1754224218765,0.4617,3490.0,3489.5,1.34440272]
[1754224218977,0.4617,3490.0,3489.5,0.9163]
[1754224219376,0.94641764,3489.9,3489.3,3.3550759]
[1754224220589,0.9106,3489.8,3489.3,3.3550759]
[1754224220870,0.94641969,3489.7,3489.3,3.3550759]
[1754224221078,2.6336,3489.6,3489.0,0.002]
[1754224221398,5.02576372,3489.5,3489.0,0.002]
[1754224221602,2.02576372,3489.5,3489.0,0.002]
[1754224221960,0.9106,3489.4,3489.0,0.002]
[1754224222404,0.9106,3489.3,3489.1,0.002]
[1754224222704,3.0,3489.2,3489.1,0.002]
[1754224222908,4.50423658,3489.2,3489.1,0.002]
[1754224223824,14.50423658,3489.2,3489.1,0.002]
[1754224224020,4.50423658,3489.2,3489.1,0.002]
[1754224225102,4.54006141,3489.2,3489.1,0.002]
[1754224225633,4.50423658,3489.2,3489.1,0.002]
[1754224226913,4.05433658,3489.2,3489.1,0.002]
[1754224227104,3.0,3489.2,3489.1,0.002]
[1754224228044,3.0,3489.2,3489.1,0.4495]
[1754224228345,3.0,3489.2,3489.1,0.002]
[1754224228708,3.4625,3489.2,3489.1,0.002]
[1754224231315,3.0,3489.2,3489.1,0.002]
[1754224233313,3.0,3489.2,3489.1,0.9032]
[1754224234045,3.0,3489.2,3489.1,1.33039366]
[1754224239182,3.0,3489.2,3489.1,0.87669366]
[1754224239383,3.001,3489.9,3489.1,1.33039366]
[1754224239546,3.001,3489.9,3489.2,0.00965334]
[1754224239752,3.001,3489.9,3489.3,3.3550759]
[1754224239953,3.001,3489.9,3489.4,0.46951229]
[1754224240153,3.001,3489.9,3489.4,0.91701229]
[1754224240351,3.001,3489.9,3489.5,4.2562759]
[1754224240352,0.001,3489.9,3489.5,4.2562759]
[1754224241777,0.001,3489.9,3489.6,0.9012]
[1754224241974,0.001,3489.9,3489.7,0.30817754]
[1754224242189,0.001,3489.9,3489.7,0.9012]
[1754224243241,0.001,3489.9,3489.8,3.3550759]
[1754224243384,0.001,3489.9,3489.8,4.26592225]
[1754224243583,0.001,3489.9,3489.8,4.2562759]
[1754224243902,0.001,3489.9,3489.8,5.41622349]
[1754224246499,0.001,3489.9,3489.8,5.42586895]
[1754224246686,0.001,3489.9,3489.8,5.55942349]
[1754224248418,0.001,3489.9,3489.8,13.30942349]
[1754224249413,0.001,3489.9,3489.8,17.70442349]
[1754224250316,0.001,3489.9,3489.8,17.81928349]
[1754224252320,0.001,3489.9,3489.8,11.82988349]
[1754224252618,0.001,3489.9,3489.8,16.10902349]
[1754224255623,0.001,3489.9,3489.8,16.55652349]
[1754224255918,0.001,3489.9,3489.8,17.15342349]
[1754224258690,0.001,3489.9,3489.8,17.70342349]
[1754224260025,0.001,3489.9,3489.8,16.91708149]
[1754224260194,0.001,3489.9,3489.8,16.25122349]
[1754224260567,0.8921,3489.9,3489.8,11.85822349]
[1754224260733,0.8921,3489.9,3489.8,10.5550759]
[1754224261426,0.8921,3489.9,3489.2,3.4982759]
[1754224261602,0.8921,3489.9,3489.3,4.393]
[1754224261603,0.92691867,3489.8,3489.3,4.393]
[1754224261802,0.8911,3489.7,3489.3,4.393]
[1754224262004,0.8911,3489.6,3489.3,4.393]
[1754224262205,0.001,3489.9,3489.3,4.393]
[1754224262524,0.8911,3489.5,3489.3,4.393]
[1754224262720,0.8911,3489.4,3489.3,4.393]
[1754224263936,0.4542,3489.6,3489.3,4.393]
[1754224264230,0.4542,3489.4,3489.3,4.393]
[1754224264434,0.8911,3489.4,3489.3,4.393]
[1754224265138,0.8911,3489.4,3489.1,0.002]
[1754224265340,0.03681764,3489.9,3489.2,4.393]
[1754224265515,0.8911,3489.3,3489.2,4.393]
[1754224265921,0.8911,3489.3,3489.1,4.395]
[1754224266152,0.8911,3489.2,3489.1,4.395]
[1754224266321,0.8911,3489.2,3489.1,0.002]
[1754224270933,34.4411,3489.2,3489.1,0.002]
[1754224274441,38.8341,3489.2,3489.1,0.002]
[1754224276438,40.5571,3489.2,3489.1,0.002]
[1754224276641,36.1641,3489.2,3489.1,0.002]
[1754224276944,40.5581,3489.2,3489.1,0.002]
[1754224277439,40.1212,3489.2,3489.1,0.002]
[1754224277645,40.5581,3489.2,3489.1,0.002]
[1754224277939,3.4542,3489.2,3489.1,0.002]
[1754224278306,3.0,3489.2,3489.1,0.002]
[1754224278840,4.393,3489.8,3489.1,0.9243]
[1754224279045,4.393,3489.8,3489.2,0.9223]
[1754224279349,4.8472,3489.8,3489.1,0.002]
[1754224280752,3.0,3489.7,3489.1,0.002]
[1754224280915,0.001,3489.9,3489.1,0.4768]
[1754224281112,0.001,3489.9,3489.1,0.9243]
[1754224281311,0.4552,3489.9,3489.1,0.002]
[1754224282076,0.001,3489.9,3489.1,0.93395692]
[1754224282551,0.001,3489.9,3489.2,0.9223]
[1754224282919,0.001,3489.9,3489.3,3.3550759]
[1754224283252,0.001,3489.9,3489.4,3.78301349]
[1754224283818,0.001,3489.9,3489.5,0.9223]
[1754224285560,0.001,3489.9,3489.4,3.78301349]
[1754224285752,0.001,3489.9,3489.4,4.23051349]
[1754224285951,0.001,3489.9,3489.4,3.78301349]
[1754224286156,0.8911,3489.8,3489.4,3.78301349]
[1754224286344,0.8911,3489.8,3489.5,0.37830135]
[1754224286655,0.8911,3489.7,3489.4,3.3550759]
[1754224286821,0.8911,3489.6,3489.4,3.3550759]
[1754224287026,0.4369,3489.6,3489.1,3.3570759]
[1754224287228,0.4542,3489.5,3489.1,3.3570759]
[1754224287562,0.4542,3489.4,3489.1,3.73793349]
[1754224287963,0.03681764,3489.9,3489.1,3.73793349]
[1754224288122,0.4542,3489.3,3489.1,3.3570759]
[1754224288329,0.4542,3489.6,3489.1,3.3570759]
[1754224289068,0.001,3489.9,3489.2,0.925256]
[1754224289239,0.001,3489.9,3489.3,0.42843319]
[1754224290037,0.001,3489.9,3489.3,0.87593319]
[1754224290861,0.001,3489.9,3489.4,0.9156]
[1754224291161,0.001,3489.9,3489.5,0.00964984]
[1754224291356,0.001,3489.9,3489.5,0.45714984]
[1754224291566,0.001,3489.9,3489.6,0.9156]
[1754224292030,0.001,3489.9,3489.7,0.9156]
[1754224292442,0.001,3489.9,3489.3,0.42843319]
[1754224292443,0.001,3489.9,3489.8,0.4681]
[1754224292642,0.001,3489.9,3489.8,0.9156]
[1754224295258,0.001,3489.9,3489.8,1.34363222]
[1754224296350,0.9181,3489.9,3489.6,3.3550759]
[1754224296738,0.4629,3489.9,3489.6,3.3550759]
[1754224297784,0.001,3489.9,3489.6,3.3550759]
[1754224298120,0.001,3489.9,3489.6,4.2706759]
[1754224298378,0.001,3489.9,3489.7,0.9156]
[1754224298546,0.001,3489.9,3489.8,0.51862759]
[1754224298741,0.001,3489.9,3489.8,0.98672759]
[1754224298967,0.001,3489.9,3489.8,1.44387305]
[1754224299280,0.001,3489.9,3489.8,4.78930349]
[1754224299481,0.001,3489.9,3489.8,4.93250349]
[1754224300655,0.001,3489.9,3489.8,9.32250349]
[1754224301771,0.001,3489.9,3489.8,9.43736649]
[1754224303765,0.001,3489.9,3489.8,9.98736649]
[1754224304498,0.001,3489.9,3489.8,17.18736649]
[1754224312016,0.001,3490.8,3490.4,3.8990759]
[1754224312184,0.001,3490.8,3490.4,8.82018349]
[1754224312370,0.001,3490.8,3490.4,9.73578349]
[1754224316216,0.001,3490.8,3490.4,9.85061749]
[1754224316514,0.001,3490.8,3490.4,17.05061749]
[1754224316708,0.001,3490.8,3490.4,16.13501749]
[1754224317087,0.001,3490.8,3490.4,17.05061749]
[1754224317309,0.001,3490.8,3490.4,16.13501749]
[1754224317510,0.001,3490.8,3490.4,17.05061749]
[1754224319127,0.001,3491.6,3490.4,17.05061749]
[1754224319128,0.4708,3491.4,3491.0,3.3460759]
[1754224319276,0.4731,3491.6,3491.2,3.0]
[1754224319476,0.4731,3491.6,3491.4,3.0]
[1754224319675,0.4731,3491.6,3491.2,3.0]
[1754224319676,0.001,3491.6,3491.5,14.9330759]
[1754224319891,0.001,3491.6,3491.5,15.0762759]
[1754224320283,0.001,3491.6,3491.5,7.8762759]
[1754224320646,0.001,3491.6,3491.5,9.47001649]
[1754224321331,0.001,3491.6,3491.5,12.47001649]
[1754224322518,0.4708,3492.2,3491.6,3.0]
[1754224322686,0.4708,3492.2,3491.8,3.0]
[1754224323016,0.4708,3492.2,3491.9,6.32240759]
[1754224323180,0.001,3493.2,3491.9,6.32240759]
[1754224323181,0.4721,3492.7,3492.0,3.3460759]
[1754224323376,0.4708,3492.6,3492.1,7.8752759]
[1754224323576,0.4721,3492.5,3492.2,7.7320759]
[1754224323784,0.4708,3492.4,3492.3,4.386]
[1754224324091,0.9429,3492.4,3492.3,4.386]
[1754224325096,0.9429,3492.4,3492.0,3.3460759]
[1754224325297,0.9429,3492.3,3492.1,4.386]
[1754224325509,0.9429,3492.2,3492.1,4.386]
[1754224326715,0.9429,3492.2,3492.0,3.3460759]
[1754224327028,0.001,3493.2,3492.1,4.386]
[1754224327532,0.9429,3493.1,3492.1,4.386]
[1754224327710,0.001,3493.2,3492.1,4.386]
[1754224327911,0.9429,3493.0,3492.1,4.386]
[1754224328194,0.4721,3492.9,3492.1,4.386]
[1754224328340,0.9429,3492.9,3492.1,4.386]
[1754224328643,0.9429,3492.8,3492.1,4.386]
[1754224328848,0.9429,3492.7,3492.1,4.386]
[1754224329048,0.4708,3492.6,3492.2,4.12887616]
[1754224329202,0.4708,3492.6,3492.1,4.386]
[1754224329203,0.4708,3493.0,3492.3,14.9310759]
[1754224329410,0.4708,3492.9,3492.4,0.1432]
[1754224329619,0.4708,3492.9,3492.5,4.385]
[1754224329809,0.4708,3493.1,3492.6,4.85350349]
[1754224330067,0.9429,3493.0,3492.7,4.385]
[1754224330216,0.4721,3493.0,3492.7,4.385]
[1754224330572,0.4708,3492.9,3492.7,4.385]
[1754224330716,0.4708,3492.9,3492.8,0.92385035]
[1754224330917,0.4721,3493.0,3492.8,0.92385035]
[1754224331217,0.4721,3493.0,3492.9,4.385]
[1754224331418,0.9429,3493.0,3492.9,4.385]
[1754224333426,0.4708,3493.0,3492.9,4.385]
[1754224334064,0.9429,3493.0,3492.9,4.385]
[1754224334749,0.001,3493.2,3492.9,4.385]
[1754224334949,0.4708,3493.1,3493.0,0.77310759]
[1754224335150,0.001,3493.2,3493.0,0.77310759]
[1754224335330,0.001,3493.2,3493.1,3.3460759]
[1754224335535,0.4718,3493.2,3493.1,3.3460759]
[1754224335862,0.4718,3493.2,3493.1,4.21081425]
[1754224336162,0.4718,3493.2,3493.1,5.24873835]
[1754224336465,0.4718,3493.2,3493.1,8.59481425]
[1754224336466,0.001,3493.2,3493.1,8.59481425]
[1754224336665,0.001,3493.2,3493.1,5.24873835]
[1754224336821,0.4718,3493.2,3493.1,5.24873835]
[1754224337016,0.001,3493.2,3493.1,5.24873835]
[1754224339065,0.001,3493.2,3493.1,0.86473835]
[1754224339263,0.001,3493.2,3493.1,5.9575]
[1754224339869,0.001,3493.2,3493.1,5.0762]
[1754224340172,0.001,3493.2,3493.1,9.3035759]
[1754224341257,0.001,3493.2,3493.1,12.3035759]
[1754224342427,0.001,3493.2,3493.1,8.9575]
[1754224342625,0.001,3493.2,3493.1,9.85325]
[1754224344464,0.001,3493.2,3493.1,13.57641263]
[1754224344666,1.71992354,3494.6,3493.2,3.55]
[1754224344868,1.24782354,3494.6,3493.4,3.55]
[1754224345042,1.24782354,3494.6,3493.6,3.55]
[1754224345388,0.4721,3494.9,3493.6,3.55]
[1754224345389,0.4721,3495.3,3494.5,0.1432]
[1754224345546,0.4721,3495.3,3494.6,4.382]
[1754224345733,0.4731,3495.2,3494.7,0.59572]
[1754224345932,0.4721,3495.1,3494.8,4.382]
[1754224346133,0.001,3495.2,3494.8,4.382]
[1754224346432,0.001,3495.2,3494.9,0.1432]
[1754224346433,0.4721,3495.1,3494.9,0.1432]
[1754224346629,0.001,3495.2,3495.0,4.382]
[1754224347070,0.001,3495.2,3494.9,0.1432]
[1754224347369,0.9429,3495.1,3495.0,4.382]
[1754224347680,0.001,3495.2,3495.0,4.83452]
[1754224347995,0.9429,3495.1,3495.0,4.97772]